[Event "2nd Cambridge Open 2024"]
[Site "Cambridge"]
[Date "2024.02.20"]
[Round "3.13"]
[White "Wadsworth, Matthew J"]
[Black "Dishman, Stephen"]
[Result "1/2-1/2"]
[ECO "D12"]
[WhiteElo "2450"]
[BlackElo "2273"]
[Annotator "TA"]
[PlyCount "83"]
[EventDate "2024.02.18"]
[EventType "swiss"]
[EventCountry "ENG"]
[SourceTitle "playchess.com"]
[Source "ChessBase"]
[SourceQuality "1"]
[TimeControl "5400+30"]

{[%evp 12,83,32,31,33,13,24,16,33,28,35,0,21,11,26,12,27,31,45,39,39,35,47,41,40,50,45,45,34,34,52,38,43,47,54,43,127,133,118,46,397,406,361,390,321,304,298,279,554,532,475,470,457,475,2268,1282,2218,2133,2039,1624,1266,1202,5281,0,0,0,0,0,0,0,0,0,0,0]} 1. d4 {[%emt 0:00:03]} d5 {[%emt 0:00:18]} 2. c4 {[%emt 0:00:05]} c6 {[%emt 0:01:38]} 3. Nc3 {[%emt 0:00:16]} Nf6 {[%emt 0:00:05]} 4. e3 {[%emt 0:00:06]} Bf5 {[%emt 0:00:28]} 5. Nf3 {[%emt 0:01:47]} e6 {[%emt 0:00:07]} 6. Nh4 {[%emt 0:00:26]} Be4 {[%emt 0:00:07]} 7. f3 {[%emt 0:01:00]} Bg6 {[%emt 0:00:07]} 8. Bd2 {[%emt 0:00:57]} Be7 {[%emt 0:01:36]} 9. Nxg6 {[%emt 0:07:39]} hxg6 {[%emt 0:00:06]} 10. Qb3 {[%emt 0:00:22]} Qc7 {[%emt 0:00:49]} 11. cxd5 {[%emt 0:05:02]} cxd5 {[%emt 0:02:04][%cal Ob8c6]} 12. O-O-O {[%emt 0:07:38]} Nc6 {[%emt 0:00:09][%cal Oa7a6]} 13. Kb1 {[%emt 0:01:23]} Nd7 {[%emt 0:04:17]} 14. e4 {[%emt 0:09:06]} Nxd4 {[%emt 0:12:39]} 15. Qa4 {[%emt 0:00:40]} Nc6 {[%emt 0:02:04]} 16. exd5 {[%emt 0:06:54] [#] Nb5 is the strong threat.} Nb6 {[%emt 0:01:55]} 17. Qf4 {[%emt 0:02:03]} Qxf4 {[%emt 0:07:25]} 18. Bxf4 {[%emt 0:00:01]} Nxd5 {[%emt 0:02:14]} 19. Nxd5 {[%emt 0:01:06]} exd5 {[%emt 0:00:04]} 20. Rxd5 {[%emt 0:00:15]} Rh5 {[%emt 0:17:25]} 21. Bc4 {[%emt 0:11:32]} Rxd5 {[%emt 0:01:58]} 22. Bxd5 {[%emt 0:00:02]} Rd8 {[%emt 0:00:31]} 23. Be4 {[%emt 0:08:02]} f5 {[%emt 0:08:15]} (23... Bb4 $14) 24. Bxc6+ $16 {[%emt 0:02:41]} bxc6 {[%emt 0:00:03][%mdl 4096] Endgame. KRB-KRB} 25. Re1 {[%emt 0:00:37] aiming for Kc2.} Kf7 $2 {[%emt 0:04:34][%mdl 8192] [#]} ({Black should try} 25... Rd7 $1 $14) 26. Rxe7+ $1 $18 {[%emt 0:01:37][%mdl 512]} Kxe7 {[%emt 0:00:05] KR-KB} 27. Bg5+ {[%emt 0:00:06]} Kd7 {[%emt 0:00:04]} 28. Bxd8 {[%emt 0:00:08]} Kxd8 {[%emt 0:00:02] KP-KP} 29. Kc2 {[%emt 0:00:10]} g5 $2 {[%emt 0:02:10]} (29... Kc7 30. Kc3 Kd7) 30. Kc3 {[%emt 0:05:20]} Kc7 {[%emt 0:01:18]} 31. Kd4 {[%emt 0:02:53] Threatens to win with Ke5.} Kd6 {[%emt 0:00:07]} 32. b4 {[%emt 0:00:06]} Ke6 {[%emt 0:03:44]} (32... Kc7 $142 33. h4 gxh4) 33. Kc5 {[%emt 0:00:54]} Kd7 {[%emt 0:00:05]} 34. b5 {[%emt 0:00:35]} cxb5 {[%emt 0:00:18]} 35. Kxb5 {[%emt 0:00:05] Black must now prevent Ka6.} Kc7 {[%emt 0:00:33]} 36. Kc5 {[%emt 0:00:06]} f4 {[%emt 0:13:39]} 37. g4 $2 {[%emt 0:02:00]} (37. Kd5 $18 Kd7 38. Ke5) 37... Kb7 $1 $11 {[%emt 0:04:46] The position is equal.} 38. Kb5 {[%emt 0:04:15]} Kc7 {[%emt 0:01:36]} 39. Ka5 {[%emt 0:03:35]} (39. Ka6 $5 Kb8 $8 40. a4 $11) 39... Kb7 {[%emt 0:00:21]} 40. Kb5 {[%emt 0:00:29]} Kc7 {[%emt 0:00:04]} 41. Kc5 {[%emt 0:01:24]} (41. Ka6 $5 Kb8 $8 42. Kb5 Kc7 $11) 41... Kb7 $1 {[%emt 0:00:14]} 42. Kb5 {[%emt 0:01:02] Weighted Error Value: White=0.17 (very precise) /Black=0.34.  Loses game:     	---       	Black=1      Mistake:       	---       	Black=3      OK:         	White=11    	Black=10     Best:        	White=5     	Black=3      Strong:       	---       	Black=1      Brilliant:      	White=1     	---} 1/2-1/2

[Event "2nd Cambridge Open 2024"]
[Site "Cambridge"]
[Date "2024.02.20"]
[Round "3.14"]
[White "Gasanov, Eldar"]
[Black "Gluma, Christian"]
[Result "1-0"]
[ECO "B06"]
[WhiteElo "2487"]
[BlackElo "2256"]
[Annotator "TA"]
[PlyCount "79"]
[EventDate "2024.02.18"]
[EventType "swiss"]
[EventCountry "ENG"]
[SourceTitle "playchess.com"]
[Source "ChessBase"]
[SourceQuality "1"]
[TimeControl "5400+30"]

{[%evp 9,79,41,77,71,77,75,76,84,69,68,71,56,59,60,119,77,106,125,154,157,148,159,168,183,177,179,178,179,179,162,254,154,156,162,162,153,147,148,161,150,155,148,213,209,203,207,323,220,240,212,364,347,426,397,391,386,360,297,303,299,297,260,362,368,444,444,831,841,796,797,2886,2795]} 1. d4 {[%emt 0:00:32]} g6 {[%emt 0:00:05]} 2. e4 {[%emt 0:00:37]} Bg7 {[%emt 0:00:05]} 3. Nf3 {[%emt 0:00:24]} c6 {[%emt 0:00:05]} 4. Bd3 {[%emt 0:00:46]} d5 {[%emt 0:00:06]} 5. e5 {[%emt 0:00:22]} Nh6 {[%emt 0:00:37] Black is weak on the dark squares} 6. O-O {[%emt 0:00:22]} O-O {[%emt 0:00:33][%cal Oc6c5]} 7. Re1 {[%emt 0:00:24]} f6 {[%emt 0:02:19]} 8. exf6 {[%emt 0:00:41] White is better.} exf6 {[%emt 0:00:11]} 9. c4 {[%emt 0:00:06]} Re8 {[%emt 0:09:15]} 10. Nc3 {[%emt 0:05:34]} Rxe1+ {[%emt 0:13:17]} 11. Qxe1 {[%emt 0:00:43]} Kf7 {[%emt 0:04:05]} ({Black should play} 11... Bg4 $14) 12. b3 {[%emt 0:10:24]} Be6 {[%emt 0:06:53]} 13. Bf4 {[%emt 0:04:17]} Nd7 {[%emt 0:02:23]} 14. cxd5 {[%emt 0:10:11] White has more active pieces.} Bxd5 {[%emt 0:00:29]} 15. Nxd5 {[%emt 0:01:21]} cxd5 {[%emt 0:57:37]} 16. Rc1 {[%emt 0:00:42]} Rc8 {[%emt 0:00:00] [#] Inhibits Rc7.} 17. Rxc8 {[%emt 0:01:59]} Qxc8 {[%emt 0:00:00]} 18. Qa5 {[%emt 0:00:42][%csl LRa7,LRd5]} Qc6 {[%emt 0:00:00]} 19. Qxa7 {[%emt 0:02:14]} Nf8 {[%emt 0:00:00]} (19... Ng8 {was worth a try.} 20. b4 Qb6) 20. h3 {[%emt 0:07:15]} Ne6 {[%emt 0:00:00]} 21. Bd2 {[%emt 0:01:09] This pair of bishops is nice.} Ng8 {[%emt 0:00:00][%cal Bh6g8,Bg8e7,Be7c8][%mdl 32]} 22. a4 {[%emt 0:01:36][%cal Ba2a4,Ba4a5][%mdl 32] Threatens to win with b4.} Ne7 {[%emt 0:00:00]} 23. b4 {[%emt 0:03:55][%cal Bb3b4,Bb4b5][%mdl 32] aiming for b5.} Nc8 {[%emt 0:00:00]} 24. Qb8 {[%emt 0:11:18]} Bf8 {[%emt 0:00:00]} 25. b5 {[%emt 0:01:09]} Qd7 {[%emt 0:00:00]} (25... Qc7 $16 26. Qxc7+ Nxc7) 26. a5 $18 {[%emt 0:02:25]} Bd6 {[%emt 0:00:00]} 27. Qa8 {[%emt 0:00:06] Strongly threatening a6.} Ke7 {[%emt 0:00:00]} (27... Nd8 $142 28. Ne1 Ne7) 28. g3 {[%emt 0:05:20] Hoping for a6.} Nd8 {[%emt 0:00:00]} 29. Kg2 {[%emt 0:01:59]} Bc7 $2 {[%emt 0:00:00]} (29... Qc7 30. Ne1 Kf7) 30. h4 {[%emt 0:03:55][%cal Bh3h4,Bh4h5][%mdl 32]} Kf7 {[%emt 0:00:00][%cal Be7f7,Bf7e6,Be6f6][%mdl 32] [#]} 31. h5 $1 {[%emt 0:04:59][%mdl 512]} Ne7 {[%emt 0:00:00]} 32. b6 {[%emt 0:04:02]} ({But not} 32. a6 bxa6 33. Qxa6 (33. bxa6 Qc6 $18) 33... Bd6 $18) 32... Bd6 {[%emt 0:00:00]} 33. a6 {[%emt 0:01:21]} bxa6 {[%emt 0:01:55]} 34. Qa7 {[%emt 0:01:31]} Ke6 {[%emt 0:02:47]} 35. Bxa6 {[%emt 0:01:04]} Nec6 {[%emt 0:01:06]} 36. Qa8 {[%emt 0:00:42]} Nb8 {[%emt 0:00:30]} 37. Bd3 {[%emt 0:00:36] White is clearly winning.} f5 {[%emt 0:01:05]} (37... Qb7 $142 38. Qa2 Nd7 39. hxg6 hxg6 40. Bxg6 Nxb6) 38. Ng5+ {[%emt 0:00:57]} Kf6 {[%emt 0:00:18]} 39. Qxd5 {[%emt 0:00:26]} h6 {[%emt 0:00:15] [#]} 40. Qg8 $1 {[%emt 0:03:37] Weighted Error Value: White=0.14 (very precise) /Black=0.35.  Mistake:       	---       	Black=6      Inaccurate:     	White=3     	Black=2      OK:         	White=20    	Black=11     Best:        	White=1     	Black=2} 1-0

[Event "2nd Cambridge Open 2024"]
[Site "Cambridge"]
[Date "2024.02.20"]
[Round "3.15"]
[White "Jermy, Jaden"]
[Black "Martin, Lewis"]
[Result "1-0"]
[ECO "D11"]
[WhiteElo "1968"]
[BlackElo "2144"]
[Annotator "RC"]
[PlyCount "65"]
[EventDate "2024.02.18"]
[EventType "swiss"]
[EventCountry "ENG"]
[SourceTitle "playchess.com"]
[Source "ChessBase"]
[SourceQuality "1"]
[TimeControl "5400+30"]

1. d4 {[%emt 0:00:02]} d5 {[%emt 0:04:44]} 2. Nf3 {[%emt 0:00:32]} Nf6 {[%emt 0:00:06]} 3. c4 {[%emt 0:00:06]} c6 {[%emt 0:00:04]} 4. Bf4 {[%emt 0:01:06]} dxc4 {[%emt 0:05:37]} 5. Qc2 {[%emt 0:04:19]} b5 {[%emt 0:01:46]} 6. e4 {[%emt 0:03:51]} Bg4 {[%emt 0:04:51]} 7. Nbd2 {[%emt 0:00:49]} e6 {[%emt 0:01:53]} 8. Be2 {[%emt 0:03:12]} Bxf3 {[%emt 0:01:46]} 9. Nxf3 {[%emt 0:01:58]} Bb4+ {[%emt 0:00:06]} 10. Kf1 {[%emt 0:00:29]} O-O {[%emt 0:00:34]} 11. g4 {[%emt 0:01:20]} Nxg4 {[%emt 0:04:30]} 12. Rg1 {[%emt 0:00:41]} f5 {[%emt 0:02:41]} 13. e5 {[%emt 0:08:19]} Be7 {[%emt 0:11:47]} 14. h3 {[%emt 0:02:14]} h5 {[%emt 0:00:37]} 15. hxg4 {[%emt 0:05:42]} fxg4 {[%emt 0:04:31]} 16. Qg6 {[%emt 0:21:21]} Rxf4 {[%emt 0:00:15]} 17. Qxe6+ {[%emt 0:06:00]} Kf8 {[%emt 0:00:43]} 18. Qg6 {[%emt 0:01:05]} Qe8 {[%emt 0:00:54]} 19. Qh7 {[%emt 0:00:13]} Qf7 {[%emt 0:03:16]} 20. e6 {[%emt 0:05:03]} Qg8 {[%emt 0:00:57]} 21. Qxh5 {[%emt 0:02:21]} gxf3 {[%emt 0:00:22]} 22. Bxf3 {[%emt 0:00:06]} g5 {[%emt 0:04:18]} 23. d5 {[%emt 0:03:46]} Rh4 {[%emt 0:03:20]} 24. Qxh4 {[%emt 0:00:09]} gxh4 {[%emt 0:00:04]} 25. Rxg8+ {[%emt 0:00:05]} Kxg8 {[%emt 0:00:06]} 26. Rd1 {[%emt 0:01:02]} Bf6 {[%emt 0:21:57]} 27. d6 {[%emt 0:04:01]} Bxb2 {[%emt 0:01:02]} 28. e7 {[%emt 0:01:19]} Nd7 {[%emt 0:01:17]} 29. Bxc6 {[%emt 0:00:21]} Rb8 {[%emt 0:00:33]} 30. Bxd7 {[%emt 0:00:25]} c3 {[%emt 0:00:57]} 31. Be6+ {[%emt 0:03:01]} Kg7 {[%emt 0:00:05]} 32. d7 {[%emt 0:00:30]} c2 {[%emt 0:00:05]} 33. Re1 {[%emt 0:00:07]} 1-0

[Event "2nd Cambridge Open 2024"]
[Site "Cambridge"]
[Date "2024.02.20"]
[Round "3.16"]
[White "Southcott-Moyers, Indy"]
[Black "Mata, Adilson"]
[Result "1-0"]
[ECO "E14"]
[WhiteElo "2123"]
[BlackElo "1924"]
[Annotator "RC"]
[PlyCount "97"]
[EventDate "2024.02.18"]
[EventType "swiss"]
[EventCountry "ENG"]
[SourceTitle "playchess.com"]
[Source "ChessBase"]
[SourceQuality "1"]
[TimeControl "5400+30"]

1. d4 {[%emt 0:00:04]} Nf6 {[%emt 0:10:04]} 2. c4 {[%emt 0:00:48]} e6 {[%emt 0:00:18]} 3. Nf3 {[%emt 0:00:07]} Bb4+ {[%emt 0:00:14]} 4. Nbd2 {[%emt 0:03:14]} O-O {[%emt 0:01:36]} 5. a3 {[%emt 0:04:24]} Bxd2+ {[%emt 0:02:08]} 6. Qxd2 {[%emt 0:02:38]} b6 {[%emt 0:00:58]} 7. e3 {[%emt 0:01:04]} Bb7 {[%emt 0:00:49]} 8. Be2 {[%emt 0:05:01]} a5 {[%emt 0:03:35]} 9. O-O {[%emt 0:07:22]} Ne4 {[%emt 0:05:39]} 10. Qc2 {[%emt 0:00:28]} a4 {[%emt 0:00:41]} 11. Nd2 {[%emt 0:05:24]} Nxd2 {[%emt 0:02:39]} 12. Bxd2 {[%emt 0:00:17]} f5 {[%emt 0:02:00]} 13. f3 {[%emt 0:04:39]} Qh4 {[%emt 0:02:53]} 14. Bd3 {[%emt 0:08:48]} Nc6 {[%emt 0:05:35]} 15. Bc3 {[%emt 0:06:58]} Ne7 {[%emt 0:05:38]} 16. Qf2 {[%emt 0:08:25]} Qh5 {[%emt 0:02:00]} 17. Qg3 {[%emt 0:02:19]} d6 {[%emt 0:00:24]} 18. d5 {[%emt 0:03:23]} Qg6 {[%emt 0:09:37]} 19. Qh4 {[%emt 0:06:48]} Rae8 {[%emt 0:04:23]} 20. Bc2 {[%emt 0:02:57]} exd5 {[%emt 0:01:54]} 21. Bxa4 {[%emt 0:01:00]} Bc6 {[%emt 0:00:55]} 22. Bxc6 {[%emt 0:01:26]} Nxc6 {[%emt 0:00:05]} 23. cxd5 {[%emt 0:00:10]} Ne5 {[%emt 0:00:43]} 24. Bd4 {[%emt 0:03:35]} Qf7 {[%emt 0:11:22]} 25. Rad1 {[%emt 0:04:03]} Qxd5 {[%emt 0:07:21]} 26. Bxb6 {[%emt 0:00:43]} Qc4 {[%emt 0:02:49]} 27. Qxc4+ {[%emt 0:02:27]} Nxc4 {[%emt 0:00:05]} 28. Bxc7 {[%emt 0:00:06]} Nxe3 {[%emt 0:00:05]} 29. Bxd6 {[%emt 0:00:10]} Nxd1 {[%emt 0:01:33]} 30. Bxf8 {[%emt 0:02:53]} Ne3 {[%emt 0:00:18]} 31. Bb4 {[%emt 0:00:26]} Nxf1 {[%emt 0:00:14]} 32. Kxf1 {[%emt 0:00:01]} Re6 {[%emt 0:00:37]} 33. a4 {[%emt 0:00:50]} Kf7 {[%emt 0:00:21]} 34. a5 {[%emt 0:00:36]} Ke8 {[%emt 0:03:24]} 35. Bc3 {[%emt 0:01:36]} Kd7 {[%emt 0:09:45]} 36. Bxg7 {[%emt 0:00:36]} Kc6 {[%emt 0:00:04]} 37. Kf2 {[%emt 0:00:17]} Kb5 {[%emt 0:00:05]} 38. Bc3 {[%emt 0:00:06]} Ka6 {[%emt 0:02:17]} 39. h3 {[%emt 0:02:03]} f4 {[%emt 0:00:56]} 40. g3 {[%emt 0:00:54]} fxg3+ {[%emt 0:00:15]} 41. Kxg3 {[%emt 0:00:01]} Rg6+ {[%emt 0:00:08]} 42. Kf4 {[%emt 0:02:24]} Rh6 {[%emt 0:00:16]} 43. Kg3 {[%emt 0:01:15]} Rg6+ {[%emt 0:00:09]} 44. Kh2 {[%emt 0:00:01]} Rg8 {[%emt 0:00:35]} 45. f4 {[%emt 0:01:13]} Kb5 {[%emt 0:00:55]} 46. f5 {[%emt 0:01:08]} Kc4 {[%emt 0:01:46]} 47. f6 {[%emt 0:00:30]} Kd3 {[%emt 0:02:03]} 48. a6 {[%emt 0:00:36]} Kc4 {[%emt 0:01:17]} 49. f7 {[%emt 0:00:20]} 1-0

[Event "2nd Cambridge Open 2024"]
[Site "Cambridge"]
[Date "2024.02.20"]
[Round "3.17"]
[White "Sivanandan, Bodhana"]
[Black "Banerjee, Supratit"]
[Result "1-0"]
[ECO "C10"]
[WhiteElo "1856"]
[BlackElo "1984"]
[Annotator "RC"]
[PlyCount "127"]
[EventDate "2024.02.18"]
[EventType "swiss"]
[EventCountry "ENG"]
[SourceTitle "playchess.com"]
[Source "ChessBase"]
[SourceQuality "1"]
[TimeControl "5400+30"]

1. e4 {[%emt 0:03:33]} e6 {[%emt 0:00:14]} 2. d4 {[%emt 0:00:21]} d5 {[%emt 0:00:17]} 3. Nd2 {[%emt 0:00:34]} dxe4 {[%emt 0:01:28]} 4. Nxe4 {[%emt 0:00:26]} Nd7 {[%emt 0:01:27]} 5. Nf3 {[%emt 0:01:01]} Ngf6 {[%emt 0:00:26]} 6. Nxf6+ {[%emt 0:00:31]} Nxf6 {[%emt 0:00:56]} 7. c3 {[%emt 0:00:47]} c5 {[%emt 0:03:24]} 8. Ne5 {[%emt 0:01:44]} a6 {[%emt 0:03:33]} 9. Be3 {[%emt 0:16:32]} Qc7 {[%emt 0:07:40]} 10. Qa4+ {[%emt 0:01:20]} Bd7 {[%emt 0:05:14]} 11. Nxd7 {[%emt 0:02:32]} Nxd7 {[%emt 0:05:06]} 12. O-O-O {[%emt 0:16:45]} O-O-O {[%emt 0:03:01]} 13. Be2 {[%emt 0:06:23]} Nb6 {[%emt 0:01:27]} 14. Qc2 {[%emt 0:00:09]} Nd5 {[%emt 0:04:17]} 15. Kb1 {[%emt 0:03:44]} c4 {[%emt 0:05:48]} 16. g3 {[%emt 0:06:51]} Qc6 {[%emt 0:05:29]} 17. Bc1 {[%emt 0:03:03]} Be7 {[%emt 0:07:03]} 18. f4 {[%emt 0:02:07]} g6 {[%emt 0:04:41]} 19. Bf3 {[%emt 0:04:47]} h5 {[%emt 0:01:41]} 20. h3 {[%emt 0:00:37]} Qc7 {[%emt 0:02:11]} 21. Rhf1 {[%emt 0:00:56]} b5 {[%emt 0:02:34]} 22. Be2 {[%emt 0:03:10]} Kb8 {[%emt 0:06:48]} 23. Bd2 {[%emt 0:04:47]} Ka7 {[%emt 0:00:30]} 24. Bf3 {[%emt 0:01:15]} a5 {[%emt 0:02:08]} 25. Rfe1 {[%emt 0:01:00]} Bf6 {[%emt 0:01:09]} 26. a3 {[%emt 0:01:18]} Rd7 {[%emt 0:04:32]} 27. Bg2 {[%emt 0:03:14]} Qc6 {[%emt 0:04:34]} 28. Re2 {[%emt 0:02:54]} Rhd8 {[%emt 0:05:10]} 29. g4 {[%emt 0:01:09]} hxg4 {[%emt 0:01:06]} 30. hxg4 {[%emt 0:00:06]} b4 {[%emt 0:03:54]} 31. cxb4 {[%emt 0:01:31]} Bxd4 {[%emt 0:00:55]} 32. Re4 {[%emt 0:01:05]} Bg7 {[%emt 0:05:57]} 33. Rxc4 {[%emt 0:00:36]} Qb5 {[%emt 0:01:21]} 34. Rc5 {[%emt 0:00:21]} Qb6 {[%emt 0:00:28]} 35. Rxa5+ {[%emt 0:01:05]} Kb8 {[%emt 0:00:09]} 36. Bxd5 {[%emt 0:01:02]} Rxd5 {[%emt 0:00:19]} 37. Rxd5 {[%emt 0:00:12]} Rxd5 {[%emt 0:00:08]} 38. Bc1 {[%emt 0:00:49]} Rxd1 {[%emt 0:00:50]} 39. Qxd1 {[%emt 0:00:05]} Bd4 {[%emt 0:00:17]} 40. Qb3 {[%emt 0:00:48]} Qc6 {[%emt 0:00:31]} 41. Qd3 {[%emt 0:01:17]} Qd5 {[%emt 0:00:54]} 42. a4 {[%emt 0:00:22]} e5 {[%emt 0:01:06]} 43. fxe5 {[%emt 0:00:08]} Qxe5 {[%emt 0:00:07]} 44. Qf3 {[%emt 0:01:56]} Qe7 {[%emt 0:00:47]} 45. Bd2 {[%emt 0:02:13]} Bg7 {[%emt 0:00:41]} 46. a5 {[%emt 0:01:18]} Qe6 {[%emt 0:00:30]} 47. b5 {[%emt 0:00:41]} g5 {[%emt 0:00:19]} 48. Qd3 {[%emt 0:02:21]} Bf6 {[%emt 0:00:35]} 49. a6 {[%emt 0:01:29]} Be7 {[%emt 0:00:28]} 50. Qd4 {[%emt 0:00:59]} Qg6+ {[%emt 0:00:26]} 51. Kc1 {[%emt 0:00:32]} Qe6 {[%emt 0:00:34]} 52. b6 {[%emt 0:00:35]} Qc6+ {[%emt 0:00:17]} 53. Bc3 {[%emt 0:00:04]} Qh1+ {[%emt 0:00:40]} 54. Kc2 {[%emt 0:00:07]} Qg2+ {[%emt 0:00:07]} 55. Kb3 {[%emt 0:00:06]} Qh1 {[%emt 0:00:50]} 56. Qe5+ {[%emt 0:00:13]} Ka8 {[%emt 0:00:41]} 57. b7+ {[%emt 0:00:07]} Qxb7+ {[%emt 0:00:07]} 58. axb7+ {[%emt 0:00:05]} Kxb7 {[%emt 0:00:07]} 59. Qxe7+ {[%emt 0:00:08]} Kc6 {[%emt 0:00:05]} 60. Kc4 {[%emt 0:04:39]} f5 {[%emt 0:00:21]} 61. b4 {[%emt 0:00:00]} f4 {[%emt 0:00:06]} 62. b5+ {[%emt 0:00:00]} Kb6 {[%emt 0:00:06]} 63. Bd4+ {[%emt 0:00:00]} Ka5 {[%emt 0:00:02]} 64. Qa7# {[%emt 0:00:00]} 1-0

[Event "2nd Cambridge Open 2024"]
[Site "Cambridge"]
[Date "2024.02.20"]
[Round "3.18"]
[White "Borsos, Bogdan"]
[Black "Nawalaniec, Adam"]
[Result "1-0"]
[ECO "C42"]
[WhiteElo "2094"]
[BlackElo "1876"]
[Annotator "NA RC"]
[PlyCount "41"]
[EventDate "2024.02.18"]
[EventType "swiss"]
[EventCountry "ENG"]
[SourceTitle "playchess.com"]
[Source "ChessBase"]
[SourceQuality "1"]
[TimeControl "5400+30"]

1. d4 {[%emt 0:00:05]} d5 {[%emt 0:00:04]} 2. c4 {[%emt 0:00:10]} dxc4 {[%emt 0:00:03]} 3. e3 {[%emt 0:00:25]} e5 {[%emt 0:00:17]} 4. Bxc4 {[%emt 0:01:40]} exd4 {[%emt 0:00:43]} 5. exd4 {[%emt 0:05:11]} Nf6 {[%emt 0:02:41]} 6. Nf3 {[%emt 0:00:09]} Be7 {[%emt 0:04:04]} 7. O-O {[%emt 0:00:15]} O-O {[%emt 0:01:32]} 8. Nc3 {[%emt 0:00:32]} Bg4 {[%emt 0:01:59]} 9. h3 {[%emt 0:01:28]} Bh5 {[%emt 0:00:16]} 10. Re1 {[%emt 0:05:03]} Nbd7 {[%emt 0:06:22]} 11. Bf4 {[%emt 0:15:12]} Nb6 {[%emt 0:07:06]} 12. Bb3 {[%emt 0:00:15]} c6 {[%emt 0:04:41]} 13. a3 {[%emt 0:03:03]} Re8 {[%emt 0:06:41]} 14. g4 {[%emt 0:18:21]} Bg6 {[%emt 0:00:27]} 15. Ne5 {[%emt 0:00:15]} Nfd5 {[%emt 0:09:07]} 16. Bd2 {[%emt 0:02:58]} Bg5 {[%emt 0:15:04]} 17. Nxd5 {[%emt 0:06:15]} Nxd5 {[%emt 0:00:21]} 18. Bxd5 {[%emt 0:00:54]} cxd5 {[%emt 0:00:26]} 19. Bxg5 {[%emt 0:01:09]} Qxg5 {[%emt 0:00:02]} 20. Qb3 {[%emt 0:06:57]} Be4 {[%emt 0:07:06]} 21. Rxe4 {[%emt 0:00:21]} 1-0

[Event "2nd Cambridge Open 2024"]
[Site "Cambridge"]
[Date "2024.02.20"]
[Round "3.19"]
[White "Payne, Matthew J"]
[Black "Skettos, Nicolas"]
[Result "1-0"]
[ECO "C02"]
[WhiteElo "2091"]
[BlackElo "1880"]
[Annotator "NA RC"]
[PlyCount "77"]
[EventDate "2024.02.18"]
[EventType "swiss"]
[EventCountry "ENG"]
[SourceTitle "playchess.com"]
[Source "ChessBase"]
[SourceQuality "1"]
[TimeControl "5400+30"]

1. e4 {[%emt 0:00:06]} e6 {[%emt 0:00:04]} 2. d4 {[%emt 0:00:11]} d5 {[%emt 0:00:05]} 3. e5 {[%emt 0:00:10]} c5 {[%emt 0:00:03]} 4. c3 {[%emt 0:00:09]} Nc6 {[%emt 0:00:02]} 5. Nf3 {[%emt 0:00:09]} Bd7 {[%emt 0:00:03]} 6. Be2 {[%emt 0:00:12]} Nge7 {[%emt 0:00:07]} 7. O-O {[%emt 0:00:18]} Ng6 {[%emt 0:00:25]} 8. g3 {[%emt 0:00:26]} Be7 {[%emt 0:00:08]} 9. h4 {[%emt 0:00:21]} cxd4 {[%emt 0:00:04]} 10. cxd4 {[%emt 0:00:32]} O-O {[%emt 0:00:10]} 11. h5 {[%emt 0:04:09]} Nh8 {[%emt 0:00:01]} 12. Nbd2 {[%emt 0:04:28]} f6 {[%emt 0:01:58]} 13. Nb3 {[%emt 0:00:58]} Nf7 {[%emt 0:11:57]} 14. Bf4 {[%emt 0:04:39]} b6 {[%emt 0:07:54]} 15. Rc1 {[%emt 0:12:26]} fxe5 {[%emt 0:00:37]} 16. dxe5 {[%emt 0:08:19]} Ng5 {[%emt 0:07:08]} 17. Kg2 {[%emt 0:08:47]} Rc8 {[%emt 0:14:18]} 18. Nxg5 {[%emt 0:06:10]} Bxg5 {[%emt 0:00:02]} 19. Bxg5 {[%emt 0:00:07]} Qxg5 {[%emt 0:00:03]} 20. f4 {[%emt 0:00:05]} Qe7 {[%emt 0:10:55]} 21. a3 {[%emt 0:03:04]} Nb8 {[%emt 0:09:28]} 22. Qd2 {[%emt 0:04:50]} Ba4 {[%emt 0:05:31]} 23. Nd4 {[%emt 0:01:08]} Rc5 {[%emt 0:09:45]} 24. b4 {[%emt 0:07:12]} Rxc1 {[%emt 0:00:30]} 25. Rxc1 {[%emt 0:00:13]} Qd7 {[%emt 0:10:20]} 26. Qc3 {[%emt 0:04:12]} Re8 {[%emt 0:02:29]} 27. Qc7 {[%emt 0:02:33]} Qxc7 {[%emt 0:01:44]} 28. Rxc7 {[%emt 0:00:04]} Bd7 {[%emt 0:01:16]} 29. Bg4 {[%emt 0:02:00]} a5 {[%emt 0:00:52]} 30. Rxd7 {[%emt 0:01:09]} Nxd7 {[%emt 0:00:01]} 31. Bxe6+ {[%emt 0:00:01]} Rxe6 {[%emt 0:00:33]} 32. Nxe6 {[%emt 0:00:06]} axb4 {[%emt 0:00:03]} 33. axb4 {[%emt 0:00:04]} b5 {[%emt 0:04:12]} 34. Nc7 {[%emt 0:00:42]} Nb6 {[%emt 0:01:39]} 35. Nxb5 {[%emt 0:00:08]} Kf7 {[%emt 0:00:06]} 36. Kf2 {[%emt 0:00:31]} Ke6 {[%emt 0:01:24]} 37. Ke3 {[%emt 0:00:54]} Kf5 {[%emt 0:00:20]} 38. Nd6+ {[%emt 0:00:32]} Kg4 {[%emt 0:00:01]} 39. e6 {[%emt 0:00:05]} 1-0

[Event "2nd Cambridge Open 2024"]
[Site "Cambridge"]
[Date "2024.02.20"]
[Round "3.20"]
[White "Pert, Max"]
[Black "McLean, Robert"]
[Result "1/2-1/2"]
[ECO "C14"]
[WhiteElo "1950"]
[BlackElo "1823"]
[Annotator "RC"]
[PlyCount "38"]
[EventDate "2024.02.18"]
[EventType "swiss"]
[EventCountry "ENG"]
[SourceTitle "playchess.com"]
[Source "ChessBase"]
[SourceQuality "1"]
[TimeControl "5400+30"]

1. e4 {[%emt 0:00:04]} e6 {[%emt 0:00:07]} 2. d4 {[%emt 0:00:16]} d5 {[%emt 0:00:04]} 3. Nc3 {[%emt 0:00:39]} Nf6 {[%emt 0:00:06]} 4. Bg5 {[%emt 0:00:23]} Be7 {[%emt 0:00:07]} 5. e5 {[%emt 0:00:40]} Nfd7 {[%emt 0:00:06]} 6. h4 {[%emt 0:00:38]} Nc6 {[%emt 0:01:46]} 7. Nf3 {[%emt 0:00:57]} O-O {[%emt 0:00:46]} 8. Rh3 {[%emt 0:02:29]} f6 {[%emt 0:00:25]} 9. exf6 {[%emt 0:13:25]} Nxf6 {[%emt 0:00:15]} 10. Ne5 {[%emt 0:07:12]} Nxe5 {[%emt 0:04:20]} 11. dxe5 {[%emt 0:00:06]} Nd7 {[%emt 0:00:12]} 12. Bxe7 {[%emt 0:23:05]} Qxe7 {[%emt 0:00:06]} 13. Bd3 {[%emt 0:03:16]} Nxe5 {[%emt 0:03:11]} 14. Bxh7+ {[%emt 0:03:21]} Kxh7 {[%emt 0:00:49]} 15. Qh5+ {[%emt 0:00:16]} Kg8 {[%emt 0:00:04]} 16. Qxe5 {[%emt 0:00:32]} Qf6 {[%emt 0:00:17]} 17. Qxf6 {[%emt 0:01:44]} Rxf6 {[%emt 0:02:14]} 18. Rd3 {[%emt 0:03:04]} c6 {[%emt 0:01:27]} 19. f3 {[%emt 0:01:27]} e5 {[%emt 0:01:19]} 1/2-1/2